[Event "*** MasterClass Titled Tuesday Blitz"]
[Site "Chess.com"]
[Date "2017.08.01"]
[Round "7"]
[White "pedroholly22"]
[Black "Al_Shima"]
[Result "1-0"]
[WhiteElo "2300"]
[BlackElo "2367"]
[TimeControl "180+2"]
[EndTime "14:33:36 PDT"]
[Termination "pedroholly22 won by resignation"]

1. e4 {[%clk 0:03:01.9]} 1... d5 {[%clk 0:03:00.9]} 2. exd5 {[%clk 0:03:02.2]}
2... Nf6 {[%clk 0:03:02]} 3. Nc3 {[%clk 0:03:04.1]} 3... Nxd5 {[%clk 0:03:03.1]}
4. Bc4 {[%clk 0:03:04.9]} 4... c6 {[%clk 0:03:03.7]} 5. Qf3 {[%clk 0:03:02.4]}
5... Nf6 {[%clk 0:03:04.5]} 6. Nge2 {[%clk 0:03:02.8]} 6... Bg4 {[%clk
0:03:04.2]} 7. Qg3 {[%clk 0:03:03.4]} 7... Nbd7 {[%clk 0:03:05.3]} 8. d4 {[%clk
0:03:03.4]} 8... e6 {[%clk 0:03:03.2]} 9. Bb3 {[%clk 0:02:58.4]} 9... Be7 {[%clk
0:02:57]} 10. h3 {[%clk 0:02:58.1]} 10... Bxe2 {[%clk 0:02:54.1]} 11. Nxe2
{[%clk 0:03:00]} 11... O-O {[%clk 0:02:54]} 12. O-O {[%clk 0:03:00]} 12... Ne4
{[%clk 0:02:44.4]} 13. Qd3 {[%clk 0:02:59.2]} 13... Ndf6 {[%clk 0:02:42.1]} 14.
c3 {[%clk 0:02:56.4]} 14... Nc5 {[%clk 0:02:31.8]} 15. Qg3 {[%clk 0:02:51.6]}
15... Nxb3 {[%clk 0:02:24.3]} 16. axb3 {[%clk 0:02:53.5]} 16... Ne4 {[%clk
0:02:20.1]} 17. Qd3 {[%clk 0:02:39]} 17... Nd6 {[%clk 0:02:20.4]} 18. Bf4 {[%clk
0:02:38.6]} 18... Nf5 {[%clk 0:02:19.5]} 19. Rfd1 {[%clk 0:02:38.5]} 19... Qb6
{[%clk 0:02:17.9]} 20. b4 {[%clk 0:02:34.7]} 20... a5 {[%clk 0:02:18.5]} 21.
bxa5 {[%clk 0:02:33.3]} 21... Rxa5 {[%clk 0:02:18.9]} 22. b4 {[%clk 0:02:30.7]}
22... Raa8 {[%clk 0:02:15.6]} 23. Ng3 {[%clk 0:02:28.4]} 23... Nxg3 {[%clk
0:02:07.5]} 24. Bxg3 {[%clk 0:02:30.3]} 24... Rfd8 {[%clk 0:02:07.9]} 25. Qc4
{[%clk 0:02:28.6]} 25... h6 {[%clk 0:02:03.9]} 26. Be5 {[%clk 0:02:26.9]} 26...
Rdc8 {[%clk 0:02:03.7]} 27. Kf1 {[%clk 0:02:25.4]} 27... Qd8 {[%clk 0:02:04]}
28. Qb3 {[%clk 0:02:22.9]} 28... Qd5 {[%clk 0:02:04]} 29. Qxd5 {[%clk
0:02:08.2]} 29... cxd5 {[%clk 0:02:04.5]} 30. Rxa8 {[%clk 0:02:08.1]} 30... Rxa8
{[%clk 0:02:04.9]} 31. Rc1 {[%clk 0:02:10]} 31... b5 {[%clk 0:02:00.8]} 32. Ke2
{[%clk 0:02:08.3]} 32... Ra2+ {[%clk 0:01:59.3]} 33. Kf1 {[%clk 0:02:07.2]}
33... Bg5 {[%clk 0:01:57]} 34. f4 {[%clk 0:02:01.3]} 34... Bh4 {[%clk
0:01:57.6]} 35. Rd1 {[%clk 0:01:57.7]} 35... f6 {[%clk 0:01:49.1]} 36. Bd6
{[%clk 0:01:57.6]} 36... Kf7 {[%clk 0:01:49.1]} 37. Rd3 {[%clk 0:01:53.6]} 37...
Bf2 {[%clk 0:01:16.1]} 38. Rf3 {[%clk 0:01:44.2]} 38... Bh4 {[%clk 0:01:03.5]}
39. g3 {[%clk 0:01:43.8]} 39... Ra1+ {[%clk 0:01:01.6]} 40. Kg2 {[%clk
0:01:38.3]} 40... Bxg3 {[%clk 0:00:58.2]} 41. Kxg3 {[%clk 0:01:38.8]} 41... Kg6
{[%clk 0:00:57.6]} 42. f5+ {[%clk 0:01:33.6]} 42... exf5 {[%clk 0:00:57.7]} 43.
Kf4 {[%clk 0:01:32.4]} 43... Re1 {[%clk 0:00:49.8]} 44. Rg3+ {[%clk 0:01:30.1]}
44... Kf7 {[%clk 0:00:50.2]} 45. Kxf5 {[%clk 0:01:31]} 45... Rf1+ {[%clk
0:00:47.2]} 46. Kg4 {[%clk 0:01:28.8]} 46... g6 {[%clk 0:00:16.9]} 47. Re3
{[%clk 0:01:27.2]} 47... h5+ {[%clk 0:00:12.9]} 48. Kg3 {[%clk 0:01:27.6]} 48...
g5 {[%clk 0:00:13.8]} 49. Rf3 {[%clk 0:01:22.3]} 49... Rg1+ {[%clk 0:00:13]} 50.
Kf2 {[%clk 0:01:23.2]} 50... Rc1 {[%clk 0:00:13.4]} 51. Be5 {[%clk 0:01:23]}
51... Rc2+ {[%clk 0:00:14.2]} 52. Kg3 {[%clk 0:01:20.5]} 52... h4+ {[%clk
0:00:14.1]} 53. Kg4 {[%clk 0:01:21.5]} 53... Rg2+ {[%clk 0:00:13.3]} 54. Kh5
{[%clk 0:01:22.4]} 54... g4 {[%clk 0:00:10.4]} 55. hxg4 {[%clk 0:01:21.1]} 55...
h3 {[%clk 0:00:09.6]} 56. Bxf6 {[%clk 0:01:09.3]} 56... h2 {[%clk 0:00:09.6]}
57. Be5+ {[%clk 0:01:10.2]} 57... Ke6 {[%clk 0:00:10.6]} 58. Rh3 {[%clk
0:01:10.6]} 1-0

[Event "*** MasterClass Titled Tuesday Blitz"]
[Site "Chess.com"]
[Date "2017.08.01"]
[Round "7"]
[White "matein28"]
[Black "Keaton87"]
[Result "1-0"]
[WhiteElo "2395"]
[BlackElo "2482"]
[TimeControl "180+2"]
[EndTime "14:33:44 PDT"]
[Termination "matein28 won by resignation"]

1. d4 {[%clk 0:03:02]} 1... d5 {[%clk 0:02:59]} 2. c4 {[%clk 0:03:02.4]} 2... e6
{[%clk 0:03:00]} 3. Nf3 {[%clk 0:03:03.3]} 3... Nf6 {[%clk 0:03:00.7]} 4. Bg5
{[%clk 0:03:04.5]} 4... Be7 {[%clk 0:03:01.1]} 5. e3 {[%clk 0:03:04.6]} 5... O-O
{[%clk 0:03:01.8]} 6. Nbd2 {[%clk 0:03:05.5]} 6... b6 {[%clk 0:02:57.8]} 7. cxd5
{[%clk 0:03:06]} 7... Nxd5 {[%clk 0:02:55.7]} 8. Bxe7 {[%clk 0:03:05.8]} 8...
Qxe7 {[%clk 0:02:57.7]} 9. Rc1 {[%clk 0:03:06.3]} 9... Nd7 {[%clk 0:02:45.1]}
10. e4 {[%clk 0:02:57]} 10... Nf4 {[%clk 0:02:45.6]} 11. Rxc7 {[%clk 0:02:53.1]}
11... Qb4 {[%clk 0:02:45.8]} 12. Qb3 {[%clk 0:02:48]} 12... Qa5 {[%clk
0:02:36.1]} 13. g3 {[%clk 0:02:39.8]} 13... Ng6 {[%clk 0:02:25.5]} 14. Bd3
{[%clk 0:02:26.8]} 14... Rd8 {[%clk 0:02:21.6]} 15. a3 {[%clk 0:02:26.1]} 15...
Ba6 {[%clk 0:02:18]} 16. Bxa6 {[%clk 0:02:22.1]} 16... Qxa6 {[%clk 0:02:18.6]}
17. Qc4 {[%clk 0:02:23.4]} 17... b5 {[%clk 0:02:06.9]} 18. Qc6 {[%clk
0:02:23.2]} 18... Qxc6 {[%clk 0:02:03.7]} 19. Rxc6 {[%clk 0:02:24.1]} 19... Rac8
{[%clk 0:02:04.5]} 20. Rxc8 {[%clk 0:02:21.5]} 20... Rxc8 {[%clk 0:02:06.5]} 21.
Kd1 {[%clk 0:02:20.6]} 21... Nb6 {[%clk 0:02:03.7]} 22. b3 {[%clk 0:02:19.3]}
22... Rc3 {[%clk 0:01:59.9]} 23. Re1 {[%clk 0:02:20.3]} 23... a5 {[%clk
0:01:56.4]} 24. Re3 {[%clk 0:02:21.2]} 24... Rc8 {[%clk 0:01:54.1]} 25. Nb1
{[%clk 0:02:14.1]} 25... b4 {[%clk 0:01:51.6]} 26. axb4 {[%clk 0:02:09.1]} 26...
axb4 {[%clk 0:01:53.6]} 27. Re2 {[%clk 0:01:58.2]} 27... Ra8 {[%clk 0:01:48.6]}
28. Rc2 {[%clk 0:01:51.6]} 28... f5 {[%clk 0:01:46.5]} 29. Nbd2 {[%clk
0:01:26.1]} 29... fxe4 {[%clk 0:01:27.3]} 30. Nxe4 {[%clk 0:01:26.7]} 30... Nd5
{[%clk 0:01:29]} 31. Nfg5 {[%clk 0:01:21.2]} 31... Nf8 {[%clk 0:01:04.2]} 32.
Rc6 {[%clk 0:01:06.9]} 32... Ra3 {[%clk 0:01:00.5]} 33. Nc5 {[%clk 0:01:05.1]}
33... Ra2 {[%clk 0:00:52.6]} 34. Ke1 {[%clk 0:00:59.7]} 34... h6 {[%clk
0:00:47.3]} 35. Ngxe6 {[%clk 0:01:00.6]} 35... Nxe6 {[%clk 0:00:48.6]} 36. Rxe6
{[%clk 0:00:57.8]} 36... Kf7 {[%clk 0:00:48.8]} 37. Re5 {[%clk 0:00:57.4]} 37...
Nc3 {[%clk 0:00:49.5]} 38. h4 {[%clk 0:00:40.1]} 38... Rb2 {[%clk 0:00:47.8]}
39. Rf5+ {[%clk 0:00:37.5]} 39... Kg6 {[%clk 0:00:47.4]} 40. Rf8 {[%clk
0:00:38.3]} 40... Kh5 {[%clk 0:00:25.9]} 41. f3 {[%clk 0:00:32.7]} 41... Ra2
{[%clk 0:00:17.3]} 42. Rf5+ {[%clk 0:00:32.6]} 42... Kg6 {[%clk 0:00:18]} 43. g4
{[%clk 0:00:33.5]} 43... Ra5 {[%clk 0:00:10.9]} 44. h5+ {[%clk 0:00:31.8]} 44...
Kh7 {[%clk 0:00:12.1]} 45. Kd2 {[%clk 0:00:27.8]} 45... Ra1 {[%clk 0:00:06]} 46.
Kd3 {[%clk 0:00:28.1]} 46... Rc1 {[%clk 0:00:07.2]} 47. Rf7 {[%clk 0:00:24.7]}
47... Kg8 {[%clk 0:00:07.4]} 48. Rb7 {[%clk 0:00:25.2]} 48... Nd5 {[%clk
0:00:08.7]} 49. Ke4 {[%clk 0:00:24.1]} 49... Nf6+ {[%clk 0:00:09.2]} 50. Kf5
{[%clk 0:00:21.7]} 50... Rf1 {[%clk 0:00:09.6]} 51. Ne6 {[%clk 0:00:16.3]} 51...
Rxf3+ {[%clk 0:00:09.3]} 52. Kg6 {[%clk 0:00:17.8]} 52... Nh7 {[%clk 0:00:07.2]}
53. Rb8+ {[%clk 0:00:16.1]} 53... Nf8+ {[%clk 0:00:08.2]} 54. Rxf8+ {[%clk
0:00:16.6]} 54... Rxf8 {[%clk 0:00:10.1]} 55. Nxf8 {[%clk 0:00:18.1]} 55... Kxf8
{[%clk 0:00:11.7]} 56. d5 {[%clk 0:00:19.6]} 1-0

[Event "*** MasterClass Titled Tuesday Blitz"]
[Site "Chess.com"]
[Date "2017.08.01"]
[Round "7"]
[White "Lord_Neezy"]
[Black "ChessNinja48"]
[Result "1-0"]
[WhiteElo "2182"]
[BlackElo "2277"]
[TimeControl "180+2"]
[EndTime "14:33:47 PDT"]
[Termination "Lord_Neezy won by resignation"]

1. e4 {[%clk 0:03:01.9]} 1... e5 {[%clk 0:02:56.8]} 2. Nc3 {[%clk 0:03:01]} 2...
Nc6 {[%clk 0:02:58.1]} 3. Bc4 {[%clk 0:03:00]} 3... Nf6 {[%clk 0:02:59]} 4. d3
{[%clk 0:02:59.1]} 4... Be7 {[%clk 0:02:55.5]} 5. f4 {[%clk 0:02:56.3]} 5... d6
{[%clk 0:02:47.1]} 6. Nf3 {[%clk 0:02:55.6]} 6... O-O {[%clk 0:02:35.4]} 7. f5
{[%clk 0:02:54.9]} 7... Na5 {[%clk 0:02:20]} 8. Qe2 {[%clk 0:02:47]} 8... c6
{[%clk 0:02:14.5]} 9. O-O {[%clk 0:02:17.7]} 9... d5 {[%clk 0:01:59.1]} 10. Bb3
{[%clk 0:02:01.4]} 10... Nxb3 {[%clk 0:01:07.3]} 11. axb3 {[%clk 0:02:03.3]}
11... dxe4 {[%clk 0:01:07.5]} 12. dxe4 {[%clk 0:02:05.2]} 12... Nd7 {[%clk
0:01:08.2]} 13. Rd1 {[%clk 0:02:02.2]} 13... Qc7 {[%clk 0:01:07.5]} 14. Kh1
{[%clk 0:01:58.7]} 14... b6 {[%clk 0:01:07.5]} 15. g4 {[%clk 0:01:55]} 15... Bb7
{[%clk 0:01:04.8]} 16. Be3 {[%clk 0:01:34]} 16... Rfd8 {[%clk 0:00:54.1]} 17.
Bf2 {[%clk 0:01:31.9]} 17... a5 {[%clk 0:00:47.8]} 18. Bg3 {[%clk 0:01:29.8]}
18... b5 {[%clk 0:00:44.2]} 19. Rd2 {[%clk 0:01:14.1]} 19... b4 {[%clk
0:00:36.5]} 20. Nd1 {[%clk 0:00:57.4]} 20... c5 {[%clk 0:00:37.9]} 21. Nf2
{[%clk 0:00:52.4]} 21... Ba6 {[%clk 0:00:20.6]} 22. Qe3 {[%clk 0:00:47.1]} 22...
f6 {[%clk 0:00:22]} 23. g5 {[%clk 0:00:41.3]} 23... Kh8 {[%clk 0:00:21.4]} 24.
Ng4 {[%clk 0:00:33.6]} 24... Nf8 {[%clk 0:00:19]} 25. gxf6 {[%clk 0:00:25.3]}
25... gxf6 {[%clk 0:00:20]} 26. Rad1 {[%clk 0:00:20.4]} 26... Rxd2 {[%clk
0:00:19.3]} 27. Rxd2 {[%clk 0:00:22.3]} 27... Rd8 {[%clk 0:00:19.4]} 28. Nh6
{[%clk 0:00:24.2]} 28... Rxd2 {[%clk 0:00:19.8]} 29. Qxd2 {[%clk 0:00:26.1]}
29... Kg7 {[%clk 0:00:19.8]} 30. Be1 {[%clk 0:00:16.1]} 30... Qd8 {[%clk
0:00:20.1]} 31. Qg2+ {[%clk 0:00:16.8]} 31... Kxh6 {[%clk 0:00:20.5]} 32. Bd2+
{[%clk 0:00:17.4]} 32... Qxd2 {[%clk 0:00:19.6]} 33. Qxd2+ {[%clk 0:00:14.4]}
33... Kg7 {[%clk 0:00:20.8]} 34. Qg2+ {[%clk 0:00:13.3]} 34... Kf7 {[%clk
0:00:21.6]} 35. Nd2 {[%clk 0:00:14.2]} 35... Bb5 {[%clk 0:00:20.7]} 36. Qf3
{[%clk 0:00:14.6]} 36... a4 {[%clk 0:00:19.1]} 37. bxa4 {[%clk 0:00:15.2]} 37...
Bxa4 {[%clk 0:00:20.5]} 38. b3 {[%clk 0:00:14.8]} 38... Bc6 {[%clk 0:00:21.8]}
39. Qh5+ {[%clk 0:00:11.3]} 39... Kg7 {[%clk 0:00:23.1]} 40. Qg4+ {[%clk
0:00:11.9]} 40... Kf7 {[%clk 0:00:24.3]} 41. Qe2 {[%clk 0:00:13.8]} 41... Nd7
{[%clk 0:00:23.3]} 42. Qc4+ {[%clk 0:00:14.7]} 42... Ke8 {[%clk 0:00:19.6]} 43.
Qe6 {[%clk 0:00:16.6]} 43... Bb7 {[%clk 0:00:20.3]} 44. Qg8+ {[%clk 0:00:16.6]}
44... Nf8 {[%clk 0:00:21]} 45. Kg2 {[%clk 0:00:17.4]} 45... Kd7 {[%clk
0:00:19.4]} 46. Kf3 {[%clk 0:00:16.6]} 46... Ba6 {[%clk 0:00:17.2]} 47. Qd5+
{[%clk 0:00:16.3]} 47... Kc7 {[%clk 0:00:16.3]} 48. Nc4 {[%clk 0:00:17]} 48...
Nd7 {[%clk 0:00:15.2]} 49. Qe6 {[%clk 0:00:16.4]} 49... Bxc4 {[%clk 0:00:16.3]}
50. Qxe7 {[%clk 0:00:16.8]} 50... Bb5 {[%clk 0:00:09.6]} 51. Qxh7 {[%clk
0:00:17.5]} 51... c4 {[%clk 0:00:10.3]} 52. Qf7 {[%clk 0:00:17.3]} 52... cxb3
{[%clk 0:00:09.6]} 53. cxb3 {[%clk 0:00:19.2]} 53... Bc6 {[%clk 0:00:10.5]} 54.
h4 {[%clk 0:00:19.8]} 54... Kd6 {[%clk 0:00:11.3]} 55. Qe6+ {[%clk 0:00:20.2]}
55... Kc5 {[%clk 0:00:10.8]} 56. h5 {[%clk 0:00:21.5]} 56... Kd4 {[%clk
0:00:09.3]} 57. Qd6+ {[%clk 0:00:21.8]} 1-0

[Event "*** MasterClass Titled Tuesday Blitz"]
[Site "Chess.com"]
[Date "2017.08.01"]
[Round "7"]
[White "DrHolmes13"]
[Black "olomi007"]
[Result "1/2-1/2"]
[WhiteElo "2398"]
[BlackElo "2509"]
[TimeControl "180+2"]
[EndTime "14:33:59 PDT"]
[Termination "Game drawn - insufficient material"]

1. d4 {[%clk 0:03:01.9]} 1... Nf6 {[%clk 0:03:00]} 2. c4 {[%clk 0:03:02.7]} 2...
g6 {[%clk 0:03:00.6]} 3. Nc3 {[%clk 0:03:01.7]} 3... d5 {[%clk 0:03:01.4]} 4.
Nf3 {[%clk 0:03:02.8]} 4... Bg7 {[%clk 0:03:02.2]} 5. Qb3 {[%clk 0:03:04.1]}
5... dxc4 {[%clk 0:03:02.9]} 6. Qxc4 {[%clk 0:03:06]} 6... O-O {[%clk
0:03:04.4]} 7. e4 {[%clk 0:03:06.3]} 7... Nc6 {[%clk 0:03:03.9]} 8. Be2 {[%clk
0:03:03.9]} 8... e5 {[%clk 0:03:04.6]} 9. d5 {[%clk 0:03:00.9]} 9... Nd4 {[%clk
0:03:04.4]} 10. Nxd4 {[%clk 0:03:01.8]} 10... exd4 {[%clk 0:03:06.3]} 11. Qxd4
{[%clk 0:03:03.2]} 11... c6 {[%clk 0:03:04.4]} 12. Qc4 {[%clk 0:02:55.4]} 12...
b5 {[%clk 0:02:52.7]} 13. Qb3 {[%clk 0:02:56.3]} 13... cxd5 {[%clk 0:02:25.9]}
14. exd5 {[%clk 0:02:55.3]} 14... b4 {[%clk 0:02:16.2]} 15. Qxb4 {[%clk
0:02:55.9]} 15... Nxd5 {[%clk 0:02:14]} 16. Nxd5 {[%clk 0:02:50.1]} 16... Qxd5
{[%clk 0:02:14.5]} 17. O-O {[%clk 0:02:51.6]} 17... Be6 {[%clk 0:02:00.2]} 18.
Bf3 {[%clk 0:02:41]} 18... Qc4 {[%clk 0:01:55.4]} 19. Qxc4 {[%clk 0:02:36.4]}
19... Bxc4 {[%clk 0:01:57.3]} 20. Bxa8 {[%clk 0:02:37.5]} 20... Bxf1 {[%clk
0:01:56.3]} 21. Kxf1 {[%clk 0:02:36.5]} 21... Rxa8 {[%clk 0:01:57]} 22. Ke2
{[%clk 0:02:25.1]} 22... Re8+ {[%clk 0:01:53.8]} 23. Kd1 {[%clk 0:02:21.2]}
23... Rd8+ {[%clk 0:01:47.6]} 24. Kc2 {[%clk 0:02:20.2]} 24... Rc8+ {[%clk
0:01:47.7]} 25. Kd3 {[%clk 0:02:04.5]} 25... Rd8+ {[%clk 0:01:46.5]} 26. Ke2
{[%clk 0:02:01.7]} 26... Re8+ {[%clk 0:01:45.4]} 27. Be3 {[%clk 0:01:53.2]}
27... Bxb2 {[%clk 0:01:41.7]} 28. Rb1 {[%clk 0:01:54.3]} 28... Bd4 {[%clk
0:01:42.5]} 29. Rb7 {[%clk 0:01:53.6]} 29... Re6 {[%clk 0:01:35.4]} 30. a4
{[%clk 0:01:38.6]} 30... Bxe3 {[%clk 0:01:27.6]} 31. fxe3 {[%clk 0:01:40.5]}
31... Ra6 {[%clk 0:01:28.7]} 32. Rb4 {[%clk 0:01:41.5]} 32... Ra5 {[%clk
0:01:29.2]} 33. Kf3 {[%clk 0:01:42.4]} 33... h5 {[%clk 0:01:29.6]} 34. h4 {[%clk
0:01:41.8]} 34... Kg7 {[%clk 0:01:30.2]} 35. g3 {[%clk 0:01:42.3]} 35... Kf6
{[%clk 0:01:31.1]} 36. e4 {[%clk 0:01:41.8]} 36... Rc5 {[%clk 0:01:30.6]} 37.
Rb7 {[%clk 0:01:39.9]} 37... a5 {[%clk 0:01:30.8]} 38. Kf4 {[%clk 0:01:34.7]}
38... Rc4 {[%clk 0:01:30.4]} 39. Rb6+ {[%clk 0:01:26.2]} 39... Kg7 {[%clk
0:01:31]} 40. Ra6 {[%clk 0:01:23.1]} 40... Rxa4 {[%clk 0:01:31.4]} 41. Ke5
{[%clk 0:01:22.8]} 41... Ra3 {[%clk 0:01:28.9]} 42. Kf4 {[%clk 0:01:22.9]} 42...
a4 {[%clk 0:01:29.9]} 43. e5 {[%clk 0:01:23.9]} 43... Kf8 {[%clk 0:01:23.7]} 44.
Ra8+ {[%clk 0:01:23.3]} 44... Ke7 {[%clk 0:01:24.6]} 45. Ra7+ {[%clk 0:01:24.6]}
45... Kf8 {[%clk 0:01:23.9]} 46. Ra8+ {[%clk 0:01:25.6]} 46... Kg7 {[%clk
0:01:24.9]} 47. Ra7 {[%clk 0:01:26.9]} 47... Ra1 {[%clk 0:01:26]} 48. e6 {[%clk
0:01:20.3]} 48... a3 {[%clk 0:00:53.4]} 49. exf7 {[%clk 0:00:58.9]} 49... a2
{[%clk 0:00:47.7]} 50. Kg5 {[%clk 0:00:53.5]} 50... Rg1 {[%clk 0:00:34.3]} 51.
f8=Q+ {[%clk 0:00:48.3]} 51... Kxf8 {[%clk 0:00:34.8]} 52. Rxa2 {[%clk
0:00:48.5]} 52... Rxg3+ {[%clk 0:00:35.5]} 53. Kf6 {[%clk 0:00:49.2]} 53... Ke8
{[%clk 0:00:29.2]} 54. Ra8+ {[%clk 0:00:34.2]} 54... Kd7 {[%clk 0:00:29.9]} 55.
Rg8 {[%clk 0:00:34.3]} 55... Rf3+ {[%clk 0:00:27.8]} 56. Kg5 {[%clk 0:00:24.3]}
56... Rg3+ {[%clk 0:00:25.2]} 57. Kf6 {[%clk 0:00:25.2]} 57... Rg4 {[%clk
0:00:23.9]} 58. Rxg6 {[%clk 0:00:25.3]} 58... Rxh4 {[%clk 0:00:25]} 59. Kg5
{[%clk 0:00:25.7]} 59... Rg4+ {[%clk 0:00:25.7]} 60. Kxh5 {[%clk 0:00:26.5]}
60... Rxg6 {[%clk 0:00:27]} 61. Kxg6 {[%clk 0:00:27.7]} 1/2-1/2

[Event "*** MasterClass Titled Tuesday Blitz"]
[Site "Chess.com"]
[Date "2017.08.01"]
[Round "7"]
[White "stefanodinn"]
[Black "CookiesAndIceCream"]
[Result "1-0"]
[WhiteElo "2177"]
[BlackElo "2071"]
[TimeControl "180+2"]
[EndTime "14:34:05 PDT"]
[Termination "stefanodinn won by resignation"]

1. e4 {[%clk 0:03:00.2]} 1... e6 {[%clk 0:03:01.4]} 2. d4 {[%clk 0:02:59.2]}
2... d5 {[%clk 0:03:02.9]} 3. Nd2 {[%clk 0:02:58.7]} 3... Be7 {[%clk 0:03:03.8]}
4. c3 {[%clk 0:02:59]} 4... c5 {[%clk 0:03:03.8]} 5. exd5 {[%clk 0:02:59.1]}
5... exd5 {[%clk 0:03:04.5]} 6. Ngf3 {[%clk 0:02:57.3]} 6... Nf6 {[%clk
0:03:04.7]} 7. dxc5 {[%clk 0:02:54.2]} 7... Bxc5 {[%clk 0:03:04.4]} 8. Bb5+
{[%clk 0:02:54.4]} 8... Bd7 {[%clk 0:03:03]} 9. Bxd7+ {[%clk 0:02:50]} 9...
Nbxd7 {[%clk 0:03:02.3]} 10. O-O {[%clk 0:02:48.6]} 10... O-O {[%clk 0:03:03.8]}
11. Nb3 {[%clk 0:02:49.5]} 11... Bb6 {[%clk 0:03:02.5]} 12. h3 {[%clk
0:02:44.2]} 12... Qc7 {[%clk 0:02:38.6]} 13. Re1 {[%clk 0:02:38.9]} 13... Rfe8
{[%clk 0:02:33.6]} 14. Rxe8+ {[%clk 0:02:22.2]} 14... Rxe8 {[%clk 0:02:33.9]}
15. Nbd4 {[%clk 0:02:23.4]} 15... Ne4 {[%clk 0:02:33.1]} 16. Be3 {[%clk
0:02:21.5]} 16... Ndf6 {[%clk 0:02:29.7]} 17. Qb3 {[%clk 0:02:09.1]} 17... Qd7
{[%clk 0:02:14.5]} 18. Rd1 {[%clk 0:02:06.3]} 18... Bc7 {[%clk 0:02:09.5]} 19.
Nb5 {[%clk 0:01:57.9]} 19... Bb6 {[%clk 0:01:57.4]} 20. Bxb6 {[%clk 0:01:49.2]}
20... axb6 {[%clk 0:01:58.7]} 21. Nbd4 {[%clk 0:01:29.4]} 21... Qd6 {[%clk
0:01:54.8]} 22. Qb5 {[%clk 0:01:12.5]} 22... Rc8 {[%clk 0:01:55.3]} 23. Nf5
{[%clk 0:00:59.2]} 23... Qc7 {[%clk 0:01:40.1]} 24. Qb4 {[%clk 0:00:27.2]} 24...
Re8 {[%clk 0:01:33.2]} 25. Qb5 {[%clk 0:00:14.9]} 25... Qc6 {[%clk 0:01:24.3]}
26. N3d4 {[%clk 0:00:13.5]} 26... Qc7 {[%clk 0:01:09.5]} 27. Re1 {[%clk
0:00:12.5]} 27... g6 {[%clk 0:01:08.5]} 28. Ne3 {[%clk 0:00:08.1]} 28... Qf4
{[%clk 0:00:57]} 29. Qf1 {[%clk 0:00:05.5]} 29... h5 {[%clk 0:00:50.5]} 30. Ne2
{[%clk 0:00:02.7]} 30... Qd6 {[%clk 0:00:32.5]} 31. Nd4 {[%clk 0:00:03.7]} 31...
Qf4 {[%clk 0:00:33]} 32. Qe2 {[%clk 0:00:04.3]} 32... Kg7 {[%clk 0:00:29.1]} 33.
Qf3 {[%clk 0:00:04.9]} 33... Qe5 {[%clk 0:00:27.4]} 34. Rd1 {[%clk 0:00:06]}
34... Ra8 {[%clk 0:00:27.2]} 35. a3 {[%clk 0:00:06.1]} 35... Re8 {[%clk
0:00:26.6]} 36. Nec2 {[%clk 0:00:06.9]} 36... Ng5 {[%clk 0:00:24]} 37. Qd3
{[%clk 0:00:06.9]} 37... Nge4 {[%clk 0:00:21]} 38. Nb4 {[%clk 0:00:07.2]} 38...
Qf4 {[%clk 0:00:21.3]} 39. Qf3 {[%clk 0:00:08]} 39... Qe5 {[%clk 0:00:22.5]} 40.
Qe3 {[%clk 0:00:08.4]} 40... Qd6 {[%clk 0:00:21.5]} 41. Qf3 {[%clk 0:00:08.7]}
41... Ng5 {[%clk 0:00:21.5]} 42. Qd3 {[%clk 0:00:09.5]} 42... Nge4 {[%clk
0:00:22.3]} 43. Nf3 {[%clk 0:00:10.1]} 43... Rd8 {[%clk 0:00:22.6]} 44. Qe3
{[%clk 0:00:09.8]} 44... Qe7 {[%clk 0:00:21.9]} 45. Qd4 {[%clk 0:00:09.3]} 45...
Qc5 {[%clk 0:00:22.5]} 46. Ne5 {[%clk 0:00:08.5]} 46... Ng5 {[%clk 0:00:17.2]}
47. Ned3 {[%clk 0:00:07.8]} 47... Qxd4 {[%clk 0:00:17.4]} 48. cxd4 {[%clk
0:00:08.6]} 48... Nge4 {[%clk 0:00:19]} 49. f3 {[%clk 0:00:09.5]} 49... Nd6
{[%clk 0:00:19.3]} 50. Kf2 {[%clk 0:00:09]} 50... Re8 {[%clk 0:00:19.1]} 51. Rc1
{[%clk 0:00:08.9]} 51... Nc4 {[%clk 0:00:19.6]} 52. b3 {[%clk 0:00:09.7]} 52...
Nxa3 {[%clk 0:00:20]} 53. Ne5 {[%clk 0:00:09.2]} 53... Nb5 {[%clk 0:00:19.6]}
54. Ke3 {[%clk 0:00:08.5]} 54... Nd7 {[%clk 0:00:19.1]} 55. Kf4 {[%clk 0:00:08]}
55... Nxe5 {[%clk 0:00:19.7]} 56. dxe5 {[%clk 0:00:09.1]} 56... f6 {[%clk
0:00:19.3]} 57. exf6+ {[%clk 0:00:09.3]} 57... Kxf6 {[%clk 0:00:20.8]} 58. Nxd5+
{[%clk 0:00:10.6]} 58... Ke6 {[%clk 0:00:20.9]} 59. Re1+ {[%clk 0:00:10.7]}
59... Kd7 {[%clk 0:00:21.3]} 60. Nf6+ {[%clk 0:00:11.6]} 60... Kd6 {[%clk
0:00:20.9]} 61. Rxe8 {[%clk 0:00:11.9]} 1-0